fUST/lending_fUST_20260101
["ID","MTS","AMOUNT","RATE_DAILY","PERIOD"]
[400268058,1767245433197,-330.25242726,0.00010785,2]
[400268064,1767245433240,-1330.10052848,0.00010785,2]
[400268066,1767245433252,-433.27218161,0.00010785,2]
[400268083,1767245433412,-470.85416943,0.00010784,2]
[400268085,1767245433423,-29.14583057,0.00010784,2]
[400268087,1767245433432,-69595.51304106,0.00010785,2]
[400268089,1767245433443,-4477.51849748,0.00010785,2]
[400268216,1767245438229,-500.0,0.00010784,2]
[400268217,1767245438239,-500.0,0.00010784,2]
[400268218,1767245438249,-500.0,0.00010784,2]
[400268219,1767245438259,-500.0,0.00010784,2]
[400268220,1767245438268,-500.0,0.00010784,2]
[400268221,1767245438278,-500.0,0.00010784,2]
[400268222,1767245438287,-500.0,0.00010784,2]
[400268223,1767245438297,-500.0,0.00010784,2]
[400268224,1767245438307,-500.0,0.00010784,2]
[400268225,1767245438318,-629305.6699922,0.00010785,2]
[400268226,1767245438328,-178.44621092,0.00010834,2]
[400268227,1767245438338,-1200.0,0.00010884,2]
[400268228,1767245438347,-50000.0,0.00010885,2]
[400268229,1767245438357,-684.7229129,0.00010959,2]
[400268230,1767245438367,-500.0,0.00010959,2]
[400268231,1767245438376,-500.0,0.00010959,2]
[400268232,1767245438386,-500.0,0.00010959,2]
[400268233,1767245438395,-500.0,0.00010959,2]
[400268234,1767245438405,-541.75515069,0.00010959,2]
[400268235,1767245438414,-500.0,0.00010959,2]
[400268236,1767245438424,-150.0,0.00011001,2]
[400268237,1767245438434,-501.0951248,0.00011001,2]
[400268238,1767245438444,-524.93036213,0.00011001,2]
[400268239,1767245438453,-150.39445871,0.00011001,2]
[400268240,1767245438463,-150.0,0.00011001,2]
[400268241,1767245438476,-250.0,0.00011138,2]
[400268242,1767245438485,-215.28294886,0.00011138,2]
[400268243,1767245438495,-363.0,0.00011853,2]
[400268244,1767245438506,-420.0,0.00011853,2]
[400268245,1767245438515,-420.0,0.00011853,2]
[400268246,1767245438524,-420.0,0.00011862,2]
[400268247,1767245438533,-669.0,0.00011961,2]
[400268248,1767245438545,-150.0,0.00012138,2]
[400268249,1767245438555,-1364.38,0.00012329,2]
[400268250,1767245438563,-1136.99,0.00012329,2]
[400268251,1767245438573,-947.49,0.00012329,2]
[400268252,1767245438582,-789.57,0.00012329,2]
[400268253,1767245438591,-657.98,0.00012329,2]
[400268254,1767245438601,-548.31,0.00012329,2]
[400268255,1767245438611,-456.93,0.00012329,2]
[400268256,1767245438621,-380.77,0.00012329,2]
[400268257,1767245438631,-317.31,0.00012329,2]
[400268258,1767245438641,-264.43,0.00012329,2]
[400268259,1767245438651,-220.36,0.00012329,2]
[400268260,1767245438660,-183.63,0.00012329,2]
[400268261,1767245438784,-153.02,0.00012329,2]
[400268262,1767245438794,-765.15,0.00012329,2]
[400268263,1767245438803,-565.97256515,0.00012519,2]
[400268264,1767245438813,-500.0,0.00012834,2]
[400268265,1767245438823,-210.56652889,0.00012834,2]
[400268266,1767245438832,-150.0,0.00012999,2]
[400268267,1767245438841,-587.0,0.00013028,2]
[400268268,1767245438851,-181.0,0.00013048,2]
[400268269,1767245438861,-250.0,0.00013136,2]
[400268270,1767245438870,-565.97256515,0.00013196,2]
[400268271,1767245438879,-228.66,0.00013241,2]
[400268272,1767245438889,-500.0,0.00013273,2]
[400268273,1767245438898,-500.0,0.00013273,2]
[400268274,1767245438907,-500.0,0.00013273,2]
[400268275,1767245438916,-510.90139551,0.00013273,2]
[400268276,1767245438925,-500.0,0.00013273,2]
[400268277,1767245438934,-500.0,0.00013273,2]
[400268278,1767245438944,-497.57485249,0.00013273,2]
[400268279,1767245438953,-500.0,0.00013273,2]
[400268280,1767245438962,-500.0,0.00013273,2]
[400268281,1767245438971,-505.39134232,0.00013273,2]
[400268282,1767245438981,-500.0,0.00013273,2]
[400268283,1767245438990,-500.0,0.00013273,2]
[400268284,1767245438999,-500.0,0.00013273,2]
[400268285,1767245439008,-500.0,0.00013273,2]
[400268286,1767245439016,-250.0,0.00013449,2]
[400268287,1767245439026,-1682.55469545,0.0001354,2]
[400268288,1767245439035,-300.0,0.00013673,2]
[400268289,1767245439044,-582.30404194,0.00013698,2]
[400268290,1767245439053,-500.0,0.00013698,2]
[400268291,1767245439062,-500.0,0.00013698,2]
[400268292,1767245439071,-501.34554409,0.00013698,2]
[400268293,1767245439081,-500.0,0.00013698,2]
[400268294,1767245439090,-530.23109502,0.00013698,2]
[400268295,1767245439100,-634.29682706,0.00013698,2]
[400268296,1767245439109,-500.0,0.00013698,2]
[400268297,1767245439118,-500.0,0.00013698,2]
[400268298,1767245439127,-500.0,0.00013698,2]
[400268299,1767245439136,-500.0,0.00013698,2]
[400268300,1767245439145,-500.0,0.00013698,2]
[400268301,1767245439155,-500.0,0.00013698,2]
[400268302,1767245439164,-294.49990003,0.00013698,2]
[400268303,1767245439174,-856.807096,0.00013699,2]
[400268304,1767245439183,-1384.5057019,0.00013699,2]
[400268305,1767245439192,-500.0,0.00013699,2]
[400268306,1767245439201,-500.0,0.00013699,2]
[400268307,1767245439210,-504.76855077,0.00013699,2]
[400268308,1767245439219,-500.0,0.00013699,2]
[400268309,1767245439228,-500.0,0.00013699,2]
[400268310,1767245439237,-251.00272433,0.00013699,2]
[400268311,1767245439247,-500.0,0.00013699,2]
[400268312,1767245439256,-500.0,0.00013699,2]
[400268313,1767245439266,-500.0,0.00013699,2]
[400268314,1767245439276,-500.27689491,0.00013699,2]
[400268315,1767245439285,-159.77203792,0.00013699,2]
[400268316,1767245439294,-500.0,0.00013699,2]
[400268317,1767245439304,-457.22674749,0.00013699,2]
[400268318,1767245439313,-500.87963329,0.00013699,2]
[400268319,1767245439322,-500.0,0.00013699,2]
[400268320,1767245439332,-500.0,0.00013699,2]
[400268321,1767245439341,-500.0,0.00013699,2]
[400268322,1767245439350,-501.33800671,0.00013699,2]
[400268323,1767245439360,-150.0,0.00013699,2]
[400268324,1767245439369,-500.0,0.00013699,2]
[400268325,1767245439379,-500.0,0.00013699,2]
[400268326,1767245439388,-500.0,0.00013699,2]
[400268327,1767245439397,-500.0,0.00013699,2]
[400268328,1767245439407,-500.0,0.00013699,2]
[400268329,1767245439417,-500.0,0.00013699,2]
[400268330,1767245439426,-226.86184291,0.00013699,2]
[400268331,1767245439436,-500.50269191,0.00013699,2]
[400268332,1767245439445,-500.41254196,0.00013699,2]
[400268333,1767245439457,-500.0867866,0.00013699,2]
[400268334,1767245439468,-500.73491636,0.00013699,2]
[400268335,1767245439478,-502.90555737,0.00013699,2]
[400268336,1767245439487,-316.4851046,0.00013699,2]
[400268337,1767245439496,-500.96605192,0.00013699,2]
[400268338,1767245439506,-501.3582173,0.00013699,2]
[400268339,1767245439515,-500.0,0.00013699,2]
[400268340,1767245439524,-500.79513169,0.00013699,2]
[400268341,1767245439535,-501.34213841,0.00013699,2]
[400268342,1767245439545,-500.95516799,0.00013699,2]
[400268343,1767245439554,-500.49764939,0.00013699,2]
[400268344,1767245439564,-373.28262423,0.00013699,2]
[400268345,1767245439573,-500.17833478,0.00013699,2]
[400268346,1767245439582,-534.87876427,0.00013699,2]
[400268347,1767245439591,-500.0,0.00013699,2]
[400268348,1767245439601,-500.0,0.00013699,2]
[400268349,1767245439610,-500.40244192,0.00013699,2]
[400268350,1767245439619,-500.86510493,0.00013699,2]
[400268351,1767245439628,-383.99222334,0.00013699,2]
[400268352,1767245439637,-524.82836698,0.00013699,2]
[400268353,1767245439646,-501.63273171,0.00013821,2]
[400268354,1767245439656,-1000.0,0.00013821,2]
[400268355,1767245439665,-527.43501459,0.00013821,2]
[400268356,1767245439674,-1000.0,0.00013821,2]
[400268357,1767245439683,-1001.18082375,0.00013821,2]
[400268358,1767245439692,-507.02514153,0.00013821,2]
[400268359,1767245439701,-1000.0,0.00013821,2]
[400268360,1767245439711,-1041.08539316,0.00013821,2]
[400268361,1767245439720,-987.40538387,0.00013821,2]
[400268362,1767245439730,-1000.0,0.00013821,2]
[400268363,1767245439739,-502.4239539,0.00013821,2]
[400268364,1767245439749,-565.97256515,0.00013873,2]
[400268365,1767245439758,-600.0,0.00014221,2]
[400268366,1767245439768,-1000.0,0.00014247,2]
[400268367,1767245439777,-1000.0,0.00014247,2]
[400268368,1767245439786,-503.848502,0.00014247,2]
[400268369,1767245439796,-198.34157968,0.00014247,2]
[400268370,1767245439804,-1001.84835347,0.00014247,2]
[400268371,1767245439813,-1100.08232842,0.00014247,2]
[400268372,1767245439822,-502.44886287,0.00014247,2]
[400268373,1767245439831,-1000.0,0.00014247,2]
[400268374,1767245439841,-400.0,0.00014247,2]
[400268375,1767245439850,-160.44722878,0.00014247,2]
[400268376,1767245439860,-1000.0,0.00014247,2]
[400268377,1767245439869,-502.7866066,0.00014247,2]
[400268378,1767245439879,-1082.59288447,0.00014247,2]
[400268379,1767245439888,-1001.95418441,0.00014247,2]
[400268380,1767245439898,-823.0,0.00014319,2]
[400268381,1767245439907,-1501.39987686,0.00014368,2]
[400268382,1767245439916,-151.52027531,0.00014368,2]
[400268383,1767245439925,-1500.0,0.00014368,2]
[400268384,1767245439934,-1629.14531311,0.00014368,2]
[400268385,1767245439943,-342.99,0.00014447,2]
[400268386,1767245439952,-565.97256515,0.0001455,2]
[400268387,1767245439961,-501.18575005,0.00014795,2]
[400268388,1767245439970,-1042.69681858,0.00014795,2]
[400268389,1767245439983,-500.0,0.00014795,2]
[400268390,1767245439995,-1000.0,0.00014795,2]
[400268391,1767245440008,-242.68684686,0.00014834,2]
[400268392,1767245440019,-52998.81271165,0.00014882,2]
[400268393,1767245440031,-1506.13602634,0.00014916,2]
[400268394,1767245440041,-531.07693925,0.00015,3]
[400268395,1767245440053,-811.53187466,0.00015091,2]
[400268396,1767245440064,-566.53853771,0.00015227,2]
[400268397,1767245440075,-457.32,0.00015559,2]
[400268398,1767245440087,-1152.0,0.00015738,2]
[400268399,1767245440098,-571.65,0.0001667,2]
[400268400,1767245440109,-274.80716482,0.00016834,2]
[400268401,1767245440120,-111312.50125264,0.00017,2]
[400268402,1767245440132,-624.0,0.00017299,2]
[400268403,1767245440143,-1165.09113547,0.000176,2]
[400268404,1767245440154,-685.97,0.00017781,2]
[400268405,1767245440165,-161574.54161847,0.00018,2]
[400268406,1767245440177,-1041.66666667,0.00018334,2]
[400268407,1767245440189,-306.92748279,0.00018834,2]
[400268408,1767245440200,-800.3,0.00018892,2]
[400268409,1767245440211,-302.90913937,0.000189,2]
[400268410,1767245440222,-302.90913937,0.00019089,2]
[400268411,1767245440234,-796.7,0.00019178,2]
[400268412,1767245440245,-796.7,0.00019178,2]
[400268414,1767245440256,-796.7,0.00019178,2]
[400268415,1767245440267,-796.7,0.00019178,2]
[400268416,1767245440279,-796.7,0.00019178,2]
[400268417,1767245440291,-796.7,0.00019178,2]
[400268418,1767245440303,-796.7,0.00019178,2]
[400268419,1767245440315,-796.7,0.00019178,2]
[400268420,1767245440327,-796.7,0.00019178,2]
[400268421,1767245440336,-796.7,0.00019178,2]
[400268422,1767245440346,-796.7,0.00019178,2]
[400268423,1767245440358,-796.7,0.00019178,2]
[400268424,1767245440371,-796.7,0.00019178,2]
[400268426,1767245440382,-796.7,0.00019178,2]
[400268428,1767245440393,-796.7,0.00019178,2]
[400268429,1767245440404,-796.7,0.00019178,2]
[400268430,1767245440416,-796.7,0.00019178,2]
[400268431,1767245440427,-796.7,0.00019178,2]
[400268432,1767245440439,-796.7,0.00019178,2]
[400268433,1767245440450,-796.7,0.00019178,2]
[400268434,1767245440467,-796.7,0.00019178,2]
[400268435,1767245440478,-796.7,0.00019178,2]
[400268436,1767245440489,-796.7,0.00019178,2]
[400268437,1767245440503,-796.90033187,0.00019178,2]
[400268438,1767245440513,-5873.13,0.000192,2]
[400268439,1767245440523,-302.90913937,0.00019278,2]
[400268440,1767245440534,-163.58,0.000194,2]
[400268441,1767245440545,-811.53187466,0.00019448,2]
[400268442,1767245440555,-302.90913937,0.00019467,2]
[400268443,1767245440565,-418.61459717,0.00019656,2]
[400268444,1767245440576,-914.63,0.00020004,2]
[400268445,1767245440588,-856.807096,0.00020187,2]
[400268446,1767245440601,-339.04780075,0.00020834,2]
[400268447,1767245440614,-1028.96,0.00021115,2]
[400268448,1767245440625,-183.56718446,0.00021781,5]
[400268449,1767245440635,-500.0,0.00021917,2]
[400268450,1767245440645,-500.0,0.00021917,2]
[400268451,1767245440655,-475.26860085,0.00021917,2]
[400268452,1767245440666,-500.0,0.00021917,2]
[400268453,1767245440678,-318.08002056,0.00021917,2]
[400268454,1767245440690,-153.64364551,0.00021917,2]
[400268455,1767245440700,-350.29751082,0.00021917,2]
[400268456,1767245440710,-154.69,0.00022,7]
[400268457,1767245440720,-510.76405054,0.00022191,2]
[400268458,1767245440730,-1143.29,0.00022226,2]
[400268459,1767245440741,-371.16811872,0.00022834,2]
[400268460,1767245440751,-159.17,0.000234,2]
[400268461,1767245440762,-811.53187466,0.00023804,2]
[400268462,1767245440773,-152.81821811,0.000239,2]
[400268463,1767245440784,-152.81821803,0.000239,2]
[400268464,1767245440795,-152.81821803,0.000239,2]
[400268465,1767245440805,-152.81821803,0.000239,2]
[400268466,1767245440815,-152.81821803,0.000239,2]
[400268467,1767245440827,-170.0,0.00023973,11]
[400268468,1767245440838,-171140.08402738,0.00024142,2]
[400268469,1767245440848,-147634.5545045,0.0002465,2]
[400268470,1767245440859,-513.71639582,0.0002465,2]
[400268471,1767245440871,-380.0,0.00024658,2]
[400268472,1767245440881,-16819.15259793,0.00024774,2]
[400268473,1767245440893,-403.28843669,0.00024834,2]
[400268474,1767245440904,-77749.7687526,0.000249,2]
[400268475,1767245440914,-151.0,0.00025527,7]
[400268476,1767245440925,-151.0,0.00025527,7]
[400268477,1767245440935,-100404.8336094,0.00025527,2]
[400268478,1767245440945,-2000.0,0.00025972,7]
[400268479,1767245440957,-56254.91523062,0.00026,30]
[400268480,1767245440967,-152.81821803,0.00026082,2]
[400268481,1767245440978,-856.807096,0.00026676,2]
[400268482,1767245440988,-188.0,0.00026712,21]
[400268483,1767245440999,-435.40875465,0.00026834,2]
[400268484,1767245441010,-5873.13,0.000269,2]
[400268485,1767245441021,-12674.23093386,0.0002739,2]
[400268486,1767245441031,-181.29593,0.00027397,7]
[400268487,1767245441042,-1173.570712,0.00027397,7]
[400268488,1767245441053,-1173.570712,0.00027397,7]
[400268489,1767245441064,-1173.570712,0.00027397,7]
[400268490,1767245441075,-151.0,0.00027397,7]
[400268491,1767245441086,-1173.570712,0.00027397,7]
[400268492,1767245441097,-151.0,0.00027397,7]
[400268493,1767245441107,-151.0,0.00027397,7]
[400268494,1767245441119,-300.325623,0.00027397,7]
[400268495,1767245441129,-158.480917,0.00027397,7]
[400268496,1767245441141,-158.480917,0.00027397,7]
[400268497,1767245441151,-158.480917,0.00027397,7]
[400268498,1767245441162,-151.0,0.00027397,7]
[400268499,1767245441173,-158.480917,0.00027397,7]
[400268500,1767245441183,-151.0,0.00027397,7]
[400268501,1767245441194,-566.208767,0.00027397,7]
[400268502,1767245441205,-566.208767,0.00027397,7]
[400268503,1767245441215,-566.208767,0.00027397,7]
[400268504,1767245441226,-566.208767,0.00027397,7]
[400268505,1767245441237,-1041.66666667,0.00028,3]
[400268506,1767245441247,-2000.0,0.00028138,7]
[400268507,1767245441259,-2000.0,0.00028147,7]
[400268508,1767245441270,-2000.0,0.00028156,7]
[400268509,1767245441281,-811.53187466,0.00028161,2]
[400268510,1767245441292,-2000.0,0.00028164,7]
[400268511,1767245441304,-2000.0,0.00028173,7]
[400268512,1767245441315,-2000.0,0.00028182,7]
[400268513,1767245441327,-2000.0,0.00028191,7]
[400268514,1767245441337,-2000.0,0.000282,7]
[400268515,1767245441488,-2000.0,0.00028208,7]
[400268516,1767245441499,-2000.0,0.00028217,7]
[400268517,1767245441510,-2000.0,0.00028226,7]
[400268518,1767245441519,-2000.0,0.00028235,7]
[400268519,1767245441530,-500.0,0.00028235,7]
[400268520,1767245441540,-2000.0,0.00028244,7]
[400268521,1767245441549,-2000.0,0.00028252,7]
[400268522,1767245441559,-2000.0,0.00028261,7]
[400268523,1767245441568,-1997.57396137,0.0002827,7]
[400268524,1767245441578,-2000.0,0.0002827,7]
[400268525,1767245441587,-1100.0,0.00028398,7]
[400268526,1767245441597,-4777.43011459,0.00028398,2]
[400268527,1767245441606,-1158.95011257,0.000285,7]
[400268528,1767245441616,-35714.32,0.000285,3]
[400268529,1767245441626,-500.0,0.00028521,7]
[400268530,1767245441634,-19245.50339652,0.0002876,2]
[400268531,1767245441644,-2028.77969745,0.0002876,5]
[400268532,1767245441653,-19131.10080134,0.0002876,2]
[400268533,1767245441662,-5770.77337415,0.0002876,30]
[400268534,1767245441672,-2000.0,0.00028777,7]
[400268535,1767245441682,-172.36051064,0.000288,7]
[400268536,1767245441691,-152.64,0.000288,2]
[400268537,1767245441700,-467.52907262,0.00028834,2]
[400268538,1767245441709,-152.64,0.000289,2]
[400268539,1767245441719,-1100.0,0.00028942,7]
[400268540,1767245441728,-1100.0,0.00028979,7]
[400268541,1767245441737,-889.65355928,0.00029,2]
[400268542,1767245441747,-2406.8053389,0.00029,10]
[400268543,1767245441756,-152.64,0.000291,2]
[400268544,1767245441765,-152.81821803,0.00029126,2]
[400268545,1767245441774,-1100.0,0.00029186,7]
[400268546,1767245441784,-163.58,0.000292,14]
[400268547,1767245441793,-152.64,0.000292,2]
[400268548,1767245441803,-1100.0,0.00029205,7]
[400268549,1767245441812,-1100.0,0.00029288,7]
[400268550,1767245441822,-152.64,0.000293,2]
[400268551,1767245441830,-500.0,0.0002931,7]
[400268552,1767245441840,-1100.0,0.00029377,7]
[400268553,1767245441849,-1100.0,0.00029425,7]
[400268554,1767245441858,-175.0,0.00029452,34]
[400268555,1767245441868,-152.64,0.000295,2]
[400268556,1767245441878,-1100.0,0.00029502,7]
[400268557,1767245441887,-1100.0,0.00029516,7]
[400268558,1767245441897,-152.64,0.000296,2]
[400268559,1767245441906,-1608.26373009,0.0002962,2]
[400268560,1767245441916,-500.0,0.00029643,7]
[400268561,1767245441925,-500.0,0.00029714,7]
[400268562,1767245441934,-274.80124425,0.0002972,7]
[400268563,1767245441944,-1100.0,0.00029725,7]
[400268564,1767245441953,-2157.0,0.0002976,2]
[400268565,1767245441962,-1364.0,0.0002976,2]
[400268566,1767245441973,-628.0,0.0002976,2]
[400268567,1767245441983,-416.0,0.0002976,2]
[400268568,1767245441992,-416.0,0.0002976,2]
[400268569,1767245442001,-1100.0,0.00029781,7]
[400268570,1767245442011,-154.69,0.000298,7]
[400268571,1767245442020,-152.64,0.000298,2]
[400268572,1767245442030,-188.11386458,0.00029812,4]
[400268573,1767245442039,-1100.0,0.00029823,7]
[400268574,1767245442048,-500.0,0.00029845,7]
[400268575,1767245442057,-152.64,0.000299,2]
[400268576,1767245442067,-1100.0,0.00029907,7]
[400268577,1767245442077,-1100.0,0.00029982,7]
[400268578,1767245442086,-1200.38646137,0.0003,2]
[400268579,1767245442096,-10190.99658578,0.0003,7]
[400268580,1767245442106,-152.64,0.000301,2]
[400268581,1767245442115,-152.64,0.000302,2]
[400268582,1767245442124,-152.64,0.000303,2]
[400268583,1767245442133,-1100.0,0.00030302,7]
[400268584,1767245442143,-1100.0,0.00030381,7]
[400268585,1767245442152,-1100.0,0.00030394,7]
[400268586,1767245442161,-500.0,0.00030439,7]
[400268587,1767245442171,-1608.26373007,0.00030466,2]
[400268588,1767245442181,-152.64,0.000305,2]
[400268589,1767245442190,-5873.13,0.000306,2]
[400268590,1767245442199,-152.64,0.000306,2]
[400268591,1767245442208,-184.804,0.0003061,26]
[400268592,1767245442217,-184.00470644,0.0003061,26]
[400268593,1767245442227,-151.0,0.000308,4]
[400268594,1767245442236,-152.64,0.000308,2]
[400268595,1767245442246,-499.64939059,0.00030834,2]
[400268596,1767245442255,-574.69,0.00030958,30]
[400268597,1767245442265,-1100.0,0.00030989,7]
[400268598,1767245442274,-1063.11433124,0.00031,120]
[400268599,1767245442283,-161.57990308,0.00031,120]
[400268600,1767245442292,-181.86492436,0.00031,120]
[400268601,1767245442302,-208.62713506,0.00031,120]
[400268602,1767245442311,-163.54107835,0.00031,120]
[400268603,1767245442320,-184.3824898,0.00031,120]
[400268604,1767245442330,-182.69083928,0.00031,120]
[400268605,1767245442339,-162.59864532,0.00031,120]
[400268606,1767245442348,-183.86417209,0.00031,120]
[400268607,1767245442358,-194.43091559,0.00031,120]
[400268608,1767245442367,-200.80728226,0.00031,120]
[400268609,1767245442377,-1022.67877753,0.00031,7]
[400268610,1767245442386,-1100.0,0.00031036,7]
[400268611,1767245442395,-4884.59163205,0.0003112,2]
[400268612,1767245442405,-1100.0,0.00031127,7]
[400268613,1767245442414,-992.69988636,0.000313,2]
[400268614,1767245442424,-1608.26373007,0.00031311,2]
[400268615,1767245442433,-1100.0,0.00031426,7]
[400268616,1767245442442,-574.69,0.00031506,31]
[400268617,1767245442451,-263.8553107,0.00031506,120]
[400268618,1767245442464,-2000.0,0.00031583,7]
[400268619,1767245442474,-1100.0,0.00031585,7]
[400268620,1767245442484,-500.0,0.00031682,7]
[400268621,1767245442493,-1100.0,0.0003178,7]
[400268622,1767245442503,-1100.0,0.00031786,7]
[400268623,1767245442512,-1063.11433124,0.000319,120]
[400268624,1767245442521,-161.57990308,0.000319,120]
[400268625,1767245442531,-181.86492436,0.000319,120]
[400268626,1767245442541,-208.62713506,0.000319,120]
[400268627,1767245442550,-163.54107835,0.000319,120]
[400268628,1767245442559,-182.69083928,0.000319,120]
[400268629,1767245442568,-162.59864532,0.000319,120]
[400268630,1767245442578,-183.86417209,0.000319,120]
[400268631,1767245442587,-194.43091559,0.000319,120]
[400268632,1767245442596,-200.80728226,0.000319,120]
[400268633,1767245442606,-32692.16587349,0.000319,2]
[400268634,1767245442616,-26086.74604382,0.00032,120]
[400268635,1767245442625,-26690.05505472,0.00032,120]
[400268636,1767245442635,-1018.0,0.00032,7]
[400268637,1767245442643,-158.480917,0.00032,31]
[400268638,1767245442653,-158.480917,0.00032,31]
[400268639,1767245442663,-158.480917,0.00032,31]
[400268640,1767245442673,-151.0,0.00032,31]
[400268641,1767245442682,-158.480917,0.00032,31]
[400268642,1767245442692,-151.0,0.00032,31]
[400268643,1767245442702,-566.208767,0.00032,31]
[400268644,1767245442711,-151.0,0.00032,31]
[400268645,1767245442721,-566.208767,0.00032,31]
[400268646,1767245442730,-566.208767,0.00032,31]
[400268647,1767245442739,-566.208767,0.00032,31]
[400268648,1767245442748,-1100.0,0.00032023,7]
[400268649,1767245442758,-1100.0,0.0003205,7]
[400268650,1767245442767,-574.69,0.00032054,32]
[400268651,1767245442777,-1100.0,0.00032079,7]
[400268652,1767245442786,-1636.99644226,0.00032154,7]
[400268654,1767245442795,-1608.26373007,0.00032157,2]
[400268656,1767245442805,-152.81821803,0.00032171,2]
[400268657,1767245442814,-151.0,0.00032428,5]
[400268658,1767245442823,-574.69,0.00032602,33]
[400268659,1767245442832,-35714.28,0.000327,8]
[400268660,1767245442842,-170.0,0.0003274,55]
[400268661,1767245442851,-5000.0,0.0003275,2]
[400268662,1767245442861,-2157.0,0.0003276,2]
[400268663,1767245442870,-1364.0,0.0003276,2]
[400268664,1767245442880,-628.0,0.0003276,2]
[400268665,1767245442889,-416.0,0.0003276,2]
[400268666,1767245442898,-416.0,0.0003276,2]
[400268667,1767245442907,-531.76970855,0.00032834,2]
[400268668,1767245442916,-200.0,0.00032876,120]
[400268669,1767245442925,-776.2,0.00032877,10]
[400268670,1767245442934,-500.0,0.00032877,5]
[400268671,1767245442944,-150.0,0.00032877,5]
[400268672,1767245442953,-1063.11433124,0.000329,120]
[400268673,1767245442963,-161.57990308,0.000329,120]
[400268674,1767245442971,-181.86492436,0.000329,120]
[400268675,1767245442981,-208.62713506,0.000329,120]
[400268676,1767245442990,-163.54107835,0.000329,120]
[400268677,1767245442999,-162.59864532,0.000329,120]
[400268678,1767245443008,-183.86417209,0.000329,120]
[400268679,1767245443017,-154.69,0.00033,7]
[400268680,1767245443026,-163.0,0.00033,14]
[400268681,1767245443036,-13621.72926608,0.00033,120]
[400268682,1767245443044,-126936.03836298,0.00033,20]
[400268683,1767245443053,-1018.0,0.00033,7]
[400268684,1767245443063,-1608.26373007,0.00033002,2]
[400268685,1767245443072,-574.69,0.0003315,34]
[400268686,1767245443083,-856.807096,0.00033165,2]
[400268687,1767245443091,-889.5,0.00033167,30]
[400268688,1767245443102,-418.0,0.00033167,30]
[400268689,1767245443111,-13270.0,0.00033167,30]
[400268690,1767245443120,-4269.2919,0.0003322,30]
[400268691,1767245443130,-1173.570712,0.0003322,31]
[400268692,1767245443140,-1173.570712,0.0003322,31]
[400268693,1767245443149,-1173.570712,0.0003322,31]
[400268694,1767245443159,-151.0,0.0003322,31]
[400268695,1767245443168,-1173.570712,0.0003322,31]
[400268696,1767245443178,-231.068894,0.0003322,28]
[400268697,1767245443188,-151.0,0.0003322,31]
[400268698,1767245443197,-151.0,0.0003322,31]
[400268699,1767245443207,-1010.28727456,0.00033425,5]
[400268700,1767245443217,-24779.59944894,0.00033425,10]
[400268701,1767245443226,-6464.62555377,0.00033529,39]
[400268702,1767245443235,-574.69,0.00033698,35]
[400268703,1767245443245,-250.0,0.00033699,5]
[400268704,1767245443255,-1608.26373007,0.00033848,2]
[400268705,1767245443264,-1063.11433124,0.000339,120]
[400268706,1767245443274,-181.86492436,0.000339,120]
[400268707,1767245443284,-208.62713506,0.000339,120]
[400268708,1767245443294,-5873.13,0.000339,14]
[400268709,1767245443303,-1018.0,0.00034,7]
[400268710,1767245443313,-151.0,0.00034056,6]
[400268711,1767245443322,-574.69,0.00034246,36]
[400268712,1767245443332,-2000.0,0.00034389,7]
[400268713,1767245443342,-480.45,0.00034515,60]